[Event "Late-Titled-Tuesday-Blitz-February-06-2024"]
[Site "Chess.com"]
[Date "2024.02.06"]
[Round "2"]
[White "karinachess1"]
[Black "Rud_Makarian"]
[Result "1/2-1/2"]
[WhiteElo "2655"]
[BlackElo "3033"]
[TimeControl "180+1"]
[EndTime "14:21:34 PST"]
[Termination "Game drawn by repetition"]

1. d4 {[%clk 0:03:00.9]} 1... Nf6 {[%clk 0:02:57.4]} 2. c4 {[%clk 0:03:01.1]}
2... e6 {[%clk 0:02:57.7]} 3. Nc3 {[%clk 0:03:01.1]} 3... d5 {[%clk 0:02:58.4]}
4. cxd5 {[%clk 0:03:01]} 4... exd5 {[%clk 0:02:59.3]} 5. Bg5 {[%clk 0:03:00.8]}
5... c6 {[%clk 0:03:00]} 6. e3 {[%clk 0:03:01.1]} 6... h6 {[%clk 0:03:00.5]} 7.
Bh4 {[%clk 0:03:01.4]} 7... Be7 {[%clk 0:03:00.8]} 8. Bd3 {[%clk 0:03:01.7]}
8... O-O {[%clk 0:03:01.3]} 9. Nf3 {[%clk 0:02:57.5]} 9... Nbd7 {[%clk
0:03:00.7]} 10. Qc2 {[%clk 0:02:57.6]} 10... Re8 {[%clk 0:03:01.1]} 11. O-O
{[%clk 0:02:57.7]} 11... Ne4 {[%clk 0:03:01.3]} 12. Bxe7 {[%clk 0:02:57.6]}
12... Qxe7 {[%clk 0:03:01.5]} 13. Rab1 {[%clk 0:02:57.1]} 13... a5 {[%clk
0:03:01.2]} 14. a3 {[%clk 0:02:57.5]} 14... Ndf6 {[%clk 0:03:01.1]} 15. Na4
{[%clk 0:02:56.6]} 15... Nd6 {[%clk 0:02:52.7]} 16. Nc5 {[%clk 0:02:51.3]} 16...
Nfe4 {[%clk 0:02:48.9]} 17. b4 {[%clk 0:02:38.4]} 17... axb4 {[%clk 0:02:47.1]}
18. axb4 {[%clk 0:02:39.3]} 18... Bf5 {[%clk 0:02:20.5]} 19. Nd2 {[%clk
0:02:31.2]} 19... Nxd2 {[%clk 0:02:10.6]} 20. Qxd2 {[%clk 0:02:32.1]} 20... Nc4
{[%clk 0:02:06]} 21. Qd1 {[%clk 0:02:13.7]} 21... Bxd3 {[%clk 0:02:05.9]} 22.
Nxd3 {[%clk 0:02:05.5]} 22... b5 {[%clk 0:01:59.1]} 23. Ra1 {[%clk 0:01:57]}
23... Ra7 {[%clk 0:01:48]} 24. Nc5 {[%clk 0:01:49.1]} 24... Rea8 {[%clk
0:01:46.4]} 25. Rxa7 {[%clk 0:01:47.2]} 25... Rxa7 {[%clk 0:01:46.2]} 26. Qg4
{[%clk 0:01:44.3]} 26... Qe8 {[%clk 0:01:45.6]} 27. h4 {[%clk 0:01:37.6]} 27...
Qd8 {[%clk 0:01:36.2]} 28. h5 {[%clk 0:01:29.3]} 28... Ra2 {[%clk 0:01:35]} 29.
Qf5 {[%clk 0:01:11.4]} 29... Nd6 {[%clk 0:01:18.1]} 30. Qf4 {[%clk 0:01:06.4]}
30... Ne8 {[%clk 0:01:09.5]} 31. Rc1 {[%clk 0:01:05.2]} 31... Nf6 {[%clk
0:01:09.3]} 32. Nd3 {[%clk 0:00:53.7]} 32... Nxh5 {[%clk 0:01:05.6]} 33. Qf3
{[%clk 0:00:54.1]} 33... Qh4 {[%clk 0:00:51.8]} 34. Ne5 {[%clk 0:00:28.9]} 34...
Nf6 {[%clk 0:00:51.5]} 35. g3 {[%clk 0:00:26.1]} 35... Qh3 {[%clk 0:00:48.2]}
36. Nxc6 {[%clk 0:00:13.2]} 36... Qg4 {[%clk 0:00:20.7]} 37. Qxg4 {[%clk
0:00:09.4]} 37... Nxg4 {[%clk 0:00:21.6]} 38. Rf1 {[%clk 0:00:08.7]} 38... Kf8
{[%clk 0:00:18.9]} 39. Ne5 {[%clk 0:00:05.5]} 39... Nxe5 {[%clk 0:00:15.7]} 40.
dxe5 {[%clk 0:00:06.4]} 40... Ke7 {[%clk 0:00:16.4]} 41. Rc1 {[%clk 0:00:05.6]}
41... Ke6 {[%clk 0:00:14.1]} 42. Rc5 {[%clk 0:00:05.1]} 42... Kxe5 {[%clk
0:00:14.4]} 43. Rxb5 {[%clk 0:00:05.6]} 43... f5 {[%clk 0:00:13.6]} 44. Kg2
{[%clk 0:00:06]} 44... g5 {[%clk 0:00:12.6]} 45. Rb8 {[%clk 0:00:06.4]} 45...
Rb2 {[%clk 0:00:10.3]} 46. b5 {[%clk 0:00:06.7]} 46... Kf6 {[%clk 0:00:09.3]}
47. b6 {[%clk 0:00:06.8]} 47... Kg6 {[%clk 0:00:06.9]} 48. Rd8 {[%clk
0:00:04.5]} 48... Rxb6 {[%clk 0:00:06.4]} 49. Rxd5 {[%clk 0:00:04.9]} 49... Ra6
{[%clk 0:00:06.3]} 50. Rd4 {[%clk 0:00:05.3]} 50... Rb6 {[%clk 0:00:06.3]} 51.
Rc4 {[%clk 0:00:05.6]} 51... Ra6 {[%clk 0:00:05.7]} 52. Rd4 {[%clk 0:00:06]}
52... Rc6 {[%clk 0:00:06.1]} 53. Rb4 {[%clk 0:00:06]} 53... Rd6 {[%clk
0:00:06.7]} 54. Ra4 {[%clk 0:00:06.3]} 54... Rd2 {[%clk 0:00:04.6]} 55. Ra6+
{[%clk 0:00:06.2]} 55... Kh5 {[%clk 0:00:05.2]} 56. Rb6 {[%clk 0:00:05.7]} 56...
Rd5 {[%clk 0:00:04.5]} 57. Ra6 {[%clk 0:00:06]} 57... Rb5 {[%clk 0:00:04.7]} 58.
Rc6 {[%clk 0:00:05.9]} 58... g4 {[%clk 0:00:04.3]} 59. Rd6 {[%clk 0:00:05.7]}
59... Kg5 {[%clk 0:00:04.9]} 60. Rd8 {[%clk 0:00:04.4]} 60... Rb6 {[%clk
0:00:03.9]} 61. Rg8+ {[%clk 0:00:04.6]} 61... Rg6 {[%clk 0:00:04.6]} 62. Rf8
{[%clk 0:00:04.5]} 62... h5 {[%clk 0:00:04.6]} 63. Rh8 {[%clk 0:00:04.9]} 63...
Rh6 {[%clk 0:00:04.8]} 64. Rg8+ {[%clk 0:00:05.1]} 64... Kf6 {[%clk 0:00:04.2]}
65. Rf8+ {[%clk 0:00:05.6]} 65... Ke6 {[%clk 0:00:04.5]} 66. Re8+ {[%clk
0:00:05.9]} 66... Kf7 {[%clk 0:00:05]} 67. Re5 {[%clk 0:00:06.3]} 67... Kf6
{[%clk 0:00:04.9]} 68. Ra5 {[%clk 0:00:07]} 68... Kg5 {[%clk 0:00:05.4]} 69. Ra8
{[%clk 0:00:06.2]} 69... Rg6 {[%clk 0:00:05.9]} 70. Rh8 {[%clk 0:00:06.1]} 70...
Rg7 {[%clk 0:00:06.5]} 71. Rf8 {[%clk 0:00:05.7]} 71... Kg6 {[%clk 0:00:06.9]}
72. Rh8 {[%clk 0:00:05.9]} 72... Rh7 {[%clk 0:00:07.2]} 73. Rg8+ {[%clk
0:00:06.2]} 73... Kf6 {[%clk 0:00:07.3]} 74. Rf8+ {[%clk 0:00:06.3]} 74... Ke6
{[%clk 0:00:07.4]} 75. Re8+ {[%clk 0:00:06.7]} 75... Kf7 {[%clk 0:00:07.9]} 76.
Re5 {[%clk 0:00:06.2]} 76... Kf6 {[%clk 0:00:08.6]} 77. Ra5 {[%clk 0:00:06.6]}
77... h4 {[%clk 0:00:09.3]} 78. gxh4 {[%clk 0:00:06.6]} 78... Rxh4 {[%clk
0:00:10.2]} 79. Ra6+ {[%clk 0:00:07]} 79... Kg5 {[%clk 0:00:08.3]} 80. Ra8
{[%clk 0:00:07.3]} 80... Rh7 {[%clk 0:00:07.7]} 81. Rg8+ {[%clk 0:00:07.4]}
81... Kf6 {[%clk 0:00:08.3]} 82. Rf8+ {[%clk 0:00:07.5]} 82... Ke6 {[%clk
0:00:07.8]} 83. Re8+ {[%clk 0:00:07.8]} 83... Kf7 {[%clk 0:00:08.3]} 84. Re5
{[%clk 0:00:08.1]} 84... Kf6 {[%clk 0:00:08.8]} 85. Ra5 {[%clk 0:00:08.8]} 85...
Rc7 {[%clk 0:00:07.8]} 86. Ra6+ {[%clk 0:00:09.2]} 86... Kg5 {[%clk 0:00:08.2]}
87. Ra8 {[%clk 0:00:09.1]} 87... Rc4 {[%clk 0:00:08.4]} 88. Rg8+ {[%clk
0:00:09.2]} 88... Kf6 {[%clk 0:00:08.9]} 89. Rf8+ {[%clk 0:00:09.7]} 89... Ke6
{[%clk 0:00:09.6]} 90. Re8+ {[%clk 0:00:10.2]} 90... Kf7 {[%clk 0:00:10.1]} 91.
Re5 {[%clk 0:00:10.5]} 91... Kf6 {[%clk 0:00:10.2]} 92. Ra5 {[%clk 0:00:11.2]}
92... Rb4 {[%clk 0:00:10.4]} 93. Ra6+ {[%clk 0:00:11.5]} 93... Kg5 {[%clk
0:00:10.7]} 94. Ra5 {[%clk 0:00:11.9]} 94... Rc4 {[%clk 0:00:09.8]} 95. Rb5
{[%clk 0:00:12.1]} 95... Re4 {[%clk 0:00:10.2]} 96. Ra5 {[%clk 0:00:12.4]} 96...
Re6 {[%clk 0:00:10.6]} 97. Rb5 {[%clk 0:00:12.7]} 97... Re8 {[%clk 0:00:11]} 98.
Ra5 {[%clk 0:00:13]} 98... Rf8 {[%clk 0:00:11.6]} 99. Rb5 {[%clk 0:00:13.5]}
99... Kh4 {[%clk 0:00:11.8]} 100. Ra5 {[%clk 0:00:13.5]} 100... Rf7 {[%clk
0:00:12]} 101. Rb5 {[%clk 0:00:13.7]} 101... Kg5 {[%clk 0:00:12.3]} 102. Ra5
{[%clk 0:00:13.7]} 102... Re7 {[%clk 0:00:12.8]} 103. Rb5 {[%clk 0:00:14.2]}
103... Kf6 {[%clk 0:00:13.5]} 104. Ra5 {[%clk 0:00:14.6]} 104... Re5 {[%clk
0:00:14.1]} 105. Ra6+ {[%clk 0:00:14.9]} 105... Kg5 {[%clk 0:00:14.1]} 106. Ra8
{[%clk 0:00:15.2]} 106... Rb5 {[%clk 0:00:13.8]} 107. Rg8+ {[%clk 0:00:15.3]}
107... Kf6 {[%clk 0:00:14.5]} 108. Rf8+ {[%clk 0:00:15.8]} 108... Ke5 {[%clk
0:00:15.2]} 109. Re8+ {[%clk 0:00:15.9]} 109... Kd5 {[%clk 0:00:12.7]} 110. Kg3
{[%clk 0:00:16.2]} 110... Rb4 {[%clk 0:00:12.4]} 111. Kg2 {[%clk 0:00:16.5]}
111... Re4 {[%clk 0:00:10.1]} 112. Rf8 {[%clk 0:00:16.9]} 112... Ke5 {[%clk
0:00:09.8]} 113. Re8+ {[%clk 0:00:17.4]} 113... Kd5 {[%clk 0:00:10.4]} 114. Rf8
{[%clk 0:00:17.8]} 114... Re5 {[%clk 0:00:10.7]} 115. Rd8+ {[%clk 0:00:17.6]}
115... Ke6 {[%clk 0:00:10.5]} 116. Re8+ {[%clk 0:00:17.8]} 116... Kf6 {[%clk
0:00:11.2]} 117. Rf8+ {[%clk 0:00:18.1]} 117... Kg7 {[%clk 0:00:11.1]} 118. Ra8
{[%clk 0:00:18.4]} 118... Kg6 {[%clk 0:00:11.5]} 119. Ra6+ {[%clk 0:00:18.3]}
119... Kg5 {[%clk 0:00:12.1]} 120. Ra8 {[%clk 0:00:19]} 120... Re6 {[%clk
0:00:11.8]} 121. Rg8+ {[%clk 0:00:19]} 121... Rg6 {[%clk 0:00:12.3]} 122. Rf8
{[%clk 0:00:19.5]} 122... Rf6 {[%clk 0:00:12.4]} 123. Rg8+ {[%clk 0:00:20]}
123... Rg6 {[%clk 0:00:12.4]} 124. Rf8 {[%clk 0:00:20.3]} 124... Rf6 {[%clk
0:00:12.9]} 125. Rg8+ {[%clk 0:00:20.8]} 125... Rg6 {[%clk 0:00:13.6]} 1/2-1/2

[Event "Late-Titled-Tuesday-Blitz-February-06-2024"]
[Site "Chess.com"]
[Date "2024.02.06"]
[Round "2"]
[White "MikaelyanArman"]
[Black "Nf3c5"]
[Result "1/2-1/2"]
[WhiteElo "2856"]
[BlackElo "2576"]
[TimeControl "180+1"]
[EndTime "14:21:47 PST"]
[Termination "Game drawn - insufficient material"]

1. d4 {[%clk 0:03:00.9]} 1... Nf6 {[%clk 0:02:56.6]} 2. Nf3 {[%clk 0:03:01.3]}
2... e6 {[%clk 0:02:54.4]} 3. c4 {[%clk 0:03:01.7]} 3... Bb4+ {[%clk 0:02:53.4]}
4. Nbd2 {[%clk 0:03:01.4]} 4... O-O {[%clk 0:02:52.1]} 5. g3 {[%clk 0:03:00.4]}
5... d6 {[%clk 0:02:24.7]} 6. Bg2 {[%clk 0:03:00]} 6... Nc6 {[%clk 0:02:21.1]}
7. O-O {[%clk 0:02:59.9]} 7... Bxd2 {[%clk 0:02:13.4]} 8. Qxd2 {[%clk
0:02:59.4]} 8... e5 {[%clk 0:02:12.1]} 9. dxe5 {[%clk 0:02:55]} 9... Nxe5 {[%clk
0:02:05.3]} 10. Nxe5 {[%clk 0:02:49.5]} 10... dxe5 {[%clk 0:02:06.2]} 11. Qxd8
{[%clk 0:02:45.3]} 11... Rxd8 {[%clk 0:02:07.1]} 12. Bg5 {[%clk 0:02:36.6]}
12... c6 {[%clk 0:02:02.9]} 13. Rfd1 {[%clk 0:02:32.5]} 13... Bg4 {[%clk
0:01:58]} 14. Kf1 {[%clk 0:02:30.8]} 14... h6 {[%clk 0:01:50.8]} 15. Be3 {[%clk
0:02:30.5]} 15... Be6 {[%clk 0:01:36.9]} 16. b3 {[%clk 0:02:30.5]} 16... a5
{[%clk 0:01:29.1]} 17. a4 {[%clk 0:02:19.4]} 17... Kf8 {[%clk 0:01:17.6]} 18. h3
{[%clk 0:02:14.3]} 18... Ke8 {[%clk 0:01:16.3]} 19. g4 {[%clk 0:02:13.7]} 19...
Rxd1+ {[%clk 0:00:53]} 20. Rxd1 {[%clk 0:02:14.6]} 20... Nd7 {[%clk 0:00:53.4]}
21. Be4 {[%clk 0:02:06.7]} 21... Ke7 {[%clk 0:00:53.1]} 22. Kg2 {[%clk
0:02:07.2]} 22... Rc8 {[%clk 0:00:53.2]} 23. Kg3 {[%clk 0:01:59.9]} 23... b6
{[%clk 0:00:52.5]} 24. f4 {[%clk 0:01:52.6]} 24... f6 {[%clk 0:00:45.6]} 25. f5
{[%clk 0:01:47.1]} 25... Bf7 {[%clk 0:00:44.5]} 26. h4 {[%clk 0:01:46.5]} 26...
Nc5 {[%clk 0:00:44.5]} 27. Bc2 {[%clk 0:01:35]} 27... Rd8 {[%clk 0:00:42.1]} 28.
Rh1 {[%clk 0:01:06.6]} 28... Rh8 {[%clk 0:00:39.1]} 29. Rh2 {[%clk 0:01:05.4]}
29... Kd6 {[%clk 0:00:32.4]} 30. Rh1 {[%clk 0:01:02.8]} 30... Ke7 {[%clk
0:00:32.3]} 31. Bc1 {[%clk 0:00:59.8]} 31... Kd6 {[%clk 0:00:31.1]} 32. Rd1+
{[%clk 0:00:58.6]} 32... Kc7 {[%clk 0:00:30.5]} 33. g5 {[%clk 0:00:56.9]} 33...
hxg5 {[%clk 0:00:29.2]} 34. hxg5 {[%clk 0:00:57.8]} 34... fxg5 {[%clk
0:00:28.3]} 35. Bxg5 {[%clk 0:00:58.6]} 35... Re8 {[%clk 0:00:19.9]} 36. Rh1
{[%clk 0:00:55.8]} 36... Kd6 {[%clk 0:00:11.9]} 37. Rh7 {[%clk 0:00:55.1]} 37...
Rg8 {[%clk 0:00:12.6]} 38. Kf2 {[%clk 0:00:44.7]} 38... Nd7 {[%clk 0:00:12.4]}
39. Rh1 {[%clk 0:00:41.3]} 39... Nf6 {[%clk 0:00:11.3]} 40. Rd1+ {[%clk
0:00:39.2]} 40... Kc7 {[%clk 0:00:11.5]} 41. Rg1 {[%clk 0:00:36.9]} 41... Kd6
{[%clk 0:00:10.7]} 42. Be3 {[%clk 0:00:35.3]} 42... c5 {[%clk 0:00:09.2]} 43.
Bc1 {[%clk 0:00:34.1]} 43... Ke7 {[%clk 0:00:09.4]} 44. Bb2 {[%clk 0:00:34.4]}
44... Nd7 {[%clk 0:00:09.9]} 45. Be4 {[%clk 0:00:32.9]} 45... Kf6 {[%clk
0:00:10]} 46. Bc1 {[%clk 0:00:32.1]} 46... Ke7 {[%clk 0:00:09.5]} 47. Bg5+
{[%clk 0:00:32.5]} 47... Nf6 {[%clk 0:00:10.1]} 48. Bf3 {[%clk 0:00:29.4]} 48...
Rh8 {[%clk 0:00:09.4]} 49. Be3 {[%clk 0:00:28.1]} 49... Rg8 {[%clk 0:00:09]} 50.
Rd1 {[%clk 0:00:26]} 50... e4 {[%clk 0:00:09.1]} 51. Bf4 {[%clk 0:00:15]} 51...
exf3 {[%clk 0:00:08.7]} 52. Bd6+ {[%clk 0:00:15.6]} 52... Ke8 {[%clk 0:00:07.3]}
53. Kxf3 {[%clk 0:00:15.9]} 53... Bh5+ {[%clk 0:00:07.3]} 54. Kf4 {[%clk
0:00:16.4]} 54... Nd7 {[%clk 0:00:07.6]} 55. Rd3 {[%clk 0:00:14.7]} 55... Bf7
{[%clk 0:00:07]} 56. e4 {[%clk 0:00:15]} 56... g6 {[%clk 0:00:06.1]} 57. Bc7
{[%clk 0:00:11.7]} 57... gxf5 {[%clk 0:00:05.7]} 58. exf5 {[%clk 0:00:12.6]}
58... Rg1 {[%clk 0:00:04.8]} 59. Re3+ {[%clk 0:00:12.8]} 59... Kf8 {[%clk
0:00:05]} 60. Bd6+ {[%clk 0:00:09.1]} 60... Kg8 {[%clk 0:00:05.3]} 61. Re7
{[%clk 0:00:10]} 61... Nf6 {[%clk 0:00:05.8]} 62. Rb7 {[%clk 0:00:09.7]} 62...
Rf1+ {[%clk 0:00:05.9]} 63. Ke3 {[%clk 0:00:07.6]} 63... Ng4+ {[%clk 0:00:05.9]}
64. Ke2 {[%clk 0:00:07.7]} 64... Rxf5 {[%clk 0:00:06]} 65. Rxb6 {[%clk
0:00:08.3]} 65... Rf2+ {[%clk 0:00:05.8]} 66. Ke1 {[%clk 0:00:08.1]} 66... Rb2
{[%clk 0:00:06.7]} 67. Bxc5 {[%clk 0:00:08.1]} 67... Ne5 {[%clk 0:00:05]} 68.
Rb8+ {[%clk 0:00:08.1]} 68... Kh7 {[%clk 0:00:04.4]} 69. Bd6 {[%clk 0:00:08]}
69... Nd3+ {[%clk 0:00:04.9]} 70. Kf1 {[%clk 0:00:08.4]} 70... Bh5 {[%clk
0:00:04.9]} 71. Rf8 {[%clk 0:00:06.9]} 71... Kg7 {[%clk 0:00:03.9]} 72. Rf5
{[%clk 0:00:05.9]} 72... Rb1+ {[%clk 0:00:04.3]} 73. Kg2 {[%clk 0:00:05.6]}
73... Bg6 {[%clk 0:00:05.2]} 74. Rd5 {[%clk 0:00:05.3]} 74... Ne1+ {[%clk
0:00:04.3]} 75. Kg3 {[%clk 0:00:05.2]} 75... Nd3 {[%clk 0:00:04.9]} 76. c5
{[%clk 0:00:05]} 76... Rxb3 {[%clk 0:00:05.1]} 77. Kg4 {[%clk 0:00:05.2]} 77...
Nb4 {[%clk 0:00:05]} 78. Be5+ {[%clk 0:00:05.3]} 78... Kf7 {[%clk 0:00:05]} 79.
Rd6 {[%clk 0:00:05.3]} 79... Bc2 {[%clk 0:00:04.1]} 80. Rf6+ {[%clk 0:00:05.4]}
80... Ke7 {[%clk 0:00:04.3]} 81. Rb6 {[%clk 0:00:05.6]} 81... Bd1+ {[%clk
0:00:04.6]} 82. Kg5 {[%clk 0:00:03.9]} 82... Re3 {[%clk 0:00:04.2]} 83. Bf6+
{[%clk 0:00:03.8]} 83... Kd7 {[%clk 0:00:04.5]} 84. Rd6+ {[%clk 0:00:04.4]}
84... Kc7 {[%clk 0:00:04.9]} 85. Rxd1 {[%clk 0:00:05.3]} 85... Nc6 {[%clk
0:00:04.2]} 86. Rh1 {[%clk 0:00:04.4]} 86... Re6 {[%clk 0:00:03.7]} 87. Kf5
{[%clk 0:00:04.2]} 87... Re2 {[%clk 0:00:02.3]} 88. Rh7+ {[%clk 0:00:04.7]}
88... Kc8 {[%clk 0:00:03.2]} 89. Rh8+ {[%clk 0:00:04.6]} 89... Kc7 {[%clk
0:00:03.1]} 90. Rh7+ {[%clk 0:00:05.2]} 90... Kc8 {[%clk 0:00:03.6]} 91. Bg5
{[%clk 0:00:05.8]} 91... Re5+ {[%clk 0:00:03.1]} 92. Kf6 {[%clk 0:00:05.5]}
92... Rxc5 {[%clk 0:00:04]} 93. Bf4 {[%clk 0:00:05.9]} 93... Rc2 {[%clk
0:00:04.5]} 94. Ke6 {[%clk 0:00:05.8]} 94... Nd8+ {[%clk 0:00:03.9]} 95. Kd5
{[%clk 0:00:05.3]} 95... Nb7 {[%clk 0:00:04.8]} 96. Rh8+ {[%clk 0:00:05.1]}
96... Kd7 {[%clk 0:00:05]} 97. Rh7+ {[%clk 0:00:05.7]} 97... Kc8 {[%clk
0:00:05.7]} 98. Be5 {[%clk 0:00:06.4]} 98... Nd8 {[%clk 0:00:05.8]} 99. Ra7
{[%clk 0:00:05.8]} 99... Nb7 {[%clk 0:00:05.2]} 100. Ke6 {[%clk 0:00:04.8]}
100... Nc5+ {[%clk 0:00:05.1]} 101. Kd6 {[%clk 0:00:04.6]} 101... Nxa4 {[%clk
0:00:05.1]} 102. Rxa5 {[%clk 0:00:04.3]} 102... Nb6 {[%clk 0:00:05.5]} 103. Bd4
{[%clk 0:00:04.5]} 103... Kb7 {[%clk 0:00:05.4]} 104. Rb5 {[%clk 0:00:04.5]}
104... Rc6+ {[%clk 0:00:06.3]} 105. Ke7 {[%clk 0:00:04.7]} 105... Ka6 {[%clk
0:00:06.9]} 106. Rb1 {[%clk 0:00:04.9]} 106... Nd5+ {[%clk 0:00:06.6]} 107. Kd7
{[%clk 0:00:04.6]} 107... Rc2 {[%clk 0:00:07]} 108. Kd6 {[%clk 0:00:04.6]}
108... Nc3 {[%clk 0:00:06.7]} 109. Rb6+ {[%clk 0:00:03.8]} 109... Ka5 {[%clk
0:00:06.9]} 110. Rb8 {[%clk 0:00:03.3]} 110... Nb5+ {[%clk 0:00:07.1]} 111. Ke5
{[%clk 0:00:03.9]} 111... Nxd4 {[%clk 0:00:07.7]} 112. Kxd4 {[%clk 0:00:04.3]}
112... Rc7 {[%clk 0:00:07.9]} 113. Rd8 {[%clk 0:00:04.2]} 113... Kb6 {[%clk
0:00:08.2]} 114. Rd5 {[%clk 0:00:04.4]} 114... Rc1 {[%clk 0:00:08.2]} 115. Rd6+
{[%clk 0:00:04.8]} 115... Kc7 {[%clk 0:00:08.1]} 116. Rh6 {[%clk 0:00:05.3]}
116... Rd1+ {[%clk 0:00:08.6]} 117. Ke5 {[%clk 0:00:05.7]} 117... Re1+ {[%clk
0:00:09.2]} 118. Kd5 {[%clk 0:00:06.4]} 118... Rd1+ {[%clk 0:00:09.3]} 119. Ke5
{[%clk 0:00:07]} 119... Rc1 {[%clk 0:00:09.7]} 120. Rh7+ {[%clk 0:00:06.9]}
120... Kb6 {[%clk 0:00:10.2]} 121. Rh6+ {[%clk 0:00:07.4]} 121... Kb5 {[%clk
0:00:10.7]} 122. Rh8 {[%clk 0:00:07.7]} 122... Re1+ {[%clk 0:00:10.7]} 123. Kd5
{[%clk 0:00:08.1]} 123... Rd1+ {[%clk 0:00:11.2]} 124. Ke5 {[%clk 0:00:08.7]}
124... Re1+ {[%clk 0:00:11.8]} 125. Kd5 {[%clk 0:00:09.3]} 125... Rg1 {[%clk
0:00:10.4]} 126. Rb8+ {[%clk 0:00:09]} 126... Ka6 {[%clk 0:00:10.8]} 127. Rh8
{[%clk 0:00:09.6]} 127... Rg5+ {[%clk 0:00:10.1]} 128. Kc6 {[%clk 0:00:09.8]}
128... Rg6+ {[%clk 0:00:10.6]} 129. Kc5 {[%clk 0:00:10.3]} 129... Ka7 {[%clk
0:00:10.9]} 130. Rh7+ {[%clk 0:00:10.1]} 130... Ka6 {[%clk 0:00:11.4]} 131. Re7
{[%clk 0:00:10.3]} 131... Rg5+ {[%clk 0:00:11.6]} 132. Kc6 {[%clk 0:00:10.6]}
132... Rg6+ {[%clk 0:00:11.6]} 133. Kc5 {[%clk 0:00:11]} 133... Rh6 {[%clk
0:00:11.4]} 134. Rd7 {[%clk 0:00:11.1]} 134... Rg6 {[%clk 0:00:11]} 135. Rd6+
{[%clk 0:00:11.1]} 135... Rxd6 {[%clk 0:00:11.6]} 136. Kxd6 {[%clk 0:00:12]}
1/2-1/2

[Event "Late-Titled-Tuesday-Blitz-February-06-2024"]
[Site "Chess.com"]
[Date "2024.02.06"]
[Round "3"]
[White "abeljusto"]
[Black "delqate"]
[Result "0-1"]
[WhiteElo "2064"]
[BlackElo "2363"]
[TimeControl "180+1"]
[EndTime "14:24:35 PST"]
[Termination "delqate won by resignation"]

1. e4 {[%clk 0:03:00]} 1... d5 {[%clk 0:03:00.9]} 2. exd5 {[%clk 0:02:58.8]}
2... Qxd5 {[%clk 0:03:01.8]} 3. Nc3 {[%clk 0:02:58.6]} 3... Qd8 {[%clk
0:03:02.4]} 4. d4 {[%clk 0:02:58.4]} 4... Nf6 {[%clk 0:03:02.5]} 5. Bc4 {[%clk
0:02:58.3]} 5... a6 {[%clk 0:03:01.1]} 6. Nf3 {[%clk 0:02:56.3]} 6... b5 {[%clk
0:03:00.7]} 7. Bb3 {[%clk 0:02:55.1]} 7... c5 {[%clk 0:03:01]} 8. dxc5 {[%clk
0:02:51.2]} 8... Qxd1+ {[%clk 0:03:01.9]} 9. Nxd1 {[%clk 0:02:51.3]} 9... e6
{[%clk 0:03:02.8]} 10. Be3 {[%clk 0:02:49.9]} 10... Bb7 {[%clk 0:03:02.5]} 11.
h3 {[%clk 0:02:43.7]} 11... Nbd7 {[%clk 0:03:02.3]} 12. c6 {[%clk 0:02:23.6]}
12... Bxc6 {[%clk 0:03:01.6]} 13. c3 {[%clk 0:02:21.7]} 13... Bc5 {[%clk
0:02:58.3]} 14. Nd4 {[%clk 0:02:20]} 14... Bxg2 {[%clk 0:02:50.7]} 15. Rg1
{[%clk 0:02:19.9]} 15... Bxh3 {[%clk 0:02:50.6]} 16. Rxg7 {[%clk 0:02:19.8]}
16... Ne5 {[%clk 0:02:43.6]} 17. Nxe6 {[%clk 0:02:02.2]} 17... Bxe6 {[%clk
0:02:38.9]} 18. Bxc5 {[%clk 0:02:01.9]} 18... Nd3+ {[%clk 0:02:37.4]} 19. Kf1
{[%clk 0:01:51.4]} 19... Nxc5 {[%clk 0:02:38.3]} 20. Bxe6 {[%clk 0:01:49.9]}
20... Nxe6 {[%clk 0:02:39.2]} 21. Ne3 {[%clk 0:01:50.1]} 21... Nxg7 {[%clk
0:02:38.7]} 0-1

[Event "Late-Titled-Tuesday-Blitz-February-06-2024"]
[Site "Chess.com"]
[Date "2024.02.06"]
[Round "3"]
[White "Gentlejimmy7"]
[Black "DraningWaterHi"]
[Result "0-1"]
[WhiteElo "2524"]
[BlackElo "2194"]
[TimeControl "180+1"]
[EndTime "14:24:50 PST"]
[Termination "DraningWaterHi won by resignation"]

1. e4 {[%clk 0:02:54.9]} 1... c5 {[%clk 0:02:54.2]} 2. Nf3 {[%clk 0:02:54.1]}
2... d6 {[%clk 0:02:54.2]} 3. d4 {[%clk 0:02:54.2]} 3... cxd4 {[%clk 0:02:55.1]}
4. Nxd4 {[%clk 0:02:54.6]} 4... Nf6 {[%clk 0:02:55.2]} 5. f3 {[%clk 0:02:54.6]}
5... e5 {[%clk 0:02:54.4]} 6. Nb3 {[%clk 0:02:54]} 6... Nc6 {[%clk 0:02:54.4]}
7. c4 {[%clk 0:02:52.5]} 7... Be7 {[%clk 0:02:46.9]} 8. Nc3 {[%clk 0:02:52.9]}
8... O-O {[%clk 0:02:46.7]} 9. Be3 {[%clk 0:02:52.9]} 9... a6 {[%clk 0:02:46.3]}
10. Be2 {[%clk 0:02:52.7]} 10... Nd7 {[%clk 0:02:46.7]} 11. Qd2 {[%clk
0:02:52.6]} 11... f5 {[%clk 0:02:46.4]} 12. O-O {[%clk 0:02:49.1]} 12... Nf6
{[%clk 0:02:46]} 13. Rfd1 {[%clk 0:02:46.2]} 13... Be6 {[%clk 0:02:45.5]} 14. c5
{[%clk 0:02:39.2]} 14... dxc5 {[%clk 0:02:39.5]} 15. Nxc5 {[%clk 0:02:37.6]}
15... Bxc5 {[%clk 0:02:37.7]} 16. Bxc5 {[%clk 0:02:37.5]} 16... Re8 {[%clk
0:02:38.1]} 17. exf5 {[%clk 0:02:35.6]} 17... Bxf5 {[%clk 0:02:37.5]} 18. Qg5
{[%clk 0:02:31.8]} 18... Qc8 {[%clk 0:02:34.9]} 19. Rd6 {[%clk 0:02:19.6]} 19...
Bg6 {[%clk 0:02:30.6]} 20. Rxf6 {[%clk 0:02:16.5]} 20... gxf6 {[%clk 0:02:24.7]}
21. Qxf6 {[%clk 0:02:16.6]} 21... Nd4 {[%clk 0:02:15.2]} 22. Bc4+ {[%clk
0:02:12.5]} 22... Ne6 {[%clk 0:02:15.2]} 23. Re1 {[%clk 0:02:05.8]} 23... Qxc5+
{[%clk 0:02:14.7]} 24. Kh1 {[%clk 0:02:05.4]} 24... Qxc4 {[%clk 0:02:14]} 0-1

[Event "Late-Titled-Tuesday-Blitz-February-06-2024"]
[Site "Chess.com"]
[Date "2024.02.06"]
[Round "3"]
[White "LUISMIGUELOV"]
[Black "argentum049"]
[Result "0-1"]
[WhiteElo "2216"]
[BlackElo "2475"]
[TimeControl "180+1"]
[EndTime "14:25:26 PST"]
[Termination "argentum049 won by checkmate"]

1. d4 {[%clk 0:03:00.9]} 1... Nf6 {[%clk 0:02:56.2]} 2. c3 {[%clk 0:03:00.2]}
2... d5 {[%clk 0:02:54]} 3. Bg5 {[%clk 0:03:00.5]} 3... c5 {[%clk 0:02:52.3]} 4.
e3 {[%clk 0:02:59.7]} 4... Nc6 {[%clk 0:02:51.5]} 5. Bxf6 {[%clk 0:02:59.2]}
5... gxf6 {[%clk 0:02:51]} 6. g3 {[%clk 0:02:57.3]} 6... e5 {[%clk 0:02:50.2]}
7. dxc5 {[%clk 0:02:50.6]} 7... Bxc5 {[%clk 0:02:51.1]} 8. Bg2 {[%clk
0:02:50.1]} 8... Be6 {[%clk 0:02:51]} 9. Ne2 {[%clk 0:02:47.1]} 9... Qd7 {[%clk
0:02:50.1]} 10. Nd2 {[%clk 0:02:46.4]} 10... h5 {[%clk 0:02:48.2]} 11. h4 {[%clk
0:02:44.9]} 11... Bb6 {[%clk 0:02:46.4]} 12. Nb3 {[%clk 0:02:41.4]} 12... O-O-O
{[%clk 0:02:44.9]} 13. Qd2 {[%clk 0:02:37.4]} 13... Kb8 {[%clk 0:02:41]} 14.
O-O-O {[%clk 0:02:36.6]} 14... a5 {[%clk 0:02:40.4]} 15. a3 {[%clk 0:02:32.8]}
15... a4 {[%clk 0:02:39.8]} 16. Na1 {[%clk 0:02:32.2]} 16... Na5 {[%clk
0:02:40.7]} 17. Kb1 {[%clk 0:02:24.2]} 17... Qb5 {[%clk 0:02:30.8]} 18. Qc2
{[%clk 0:02:06.8]} 18... Nc4 {[%clk 0:02:30.2]} 19. Kc1 {[%clk 0:01:56]} 19...
Bf5 {[%clk 0:02:26.1]} 20. e4 {[%clk 0:01:54.9]} 20... dxe4 {[%clk 0:02:27]} 21.
Bh3 {[%clk 0:01:44.2]} 21... Bg6 {[%clk 0:02:24.8]} 22. Bg2 {[%clk 0:01:23.8]}
22... e3 {[%clk 0:02:24]} 23. Be4 {[%clk 0:01:23.7]} 23... Bxe4 {[%clk
0:02:23.4]} 24. Qxe4 {[%clk 0:01:23.5]} 24... Qxb2# {[%clk 0:02:23.1]} 0-1